Cogmind - Beta 11.1 *** ADVENTURER MODE // 2022.09.30 @ 21:19:53 Player: zxpr0jk Result: Destroyed by S-27 Virus with Autogun Performance ------------- Evolutions (3) 1500 Regions Visited (6) 1200 Robots Destroyed (143) 715 Value Destroyed (4145) 4145 Prototype IDs (36) 720 Alien Tech Used (0) 0 Bonus (510) 510 TOTAL SCORE: 8790 Bonus ------- Follower Combat Kills 275 Aligned with FarCom 300 Friendly Fire -65 Cogmind --------- Core Integrity 0/700 Matter 300/300 Energy 350/350 System Corruption 4% Temperature Cool (0) Movement Walking (190) Ox1 Location -7/Factory Parts ------- > --- POWER (2) -------- Light Nuclear Core Improved Deuterium Engine > --- PROPULSION (3) --- Aluminum Leg Aluminum Leg > --- UTILITY (5) ------ Improved Heat Sink Improved Heat Sink Advanced Signal Interpreter Target Analyzer Armor Integrity Analyzer > --- WEAPON (3) ------- Particle Gun Flak Gun > --- INVENTORY (5) ---- Improved Deuterium Engine Experimental Sensor Array Supersonic Drone Bay (1/1) Remote Datajack Peak State ------------ > --- POWER ------------ Improved Deuterium Engine Micro Nuclear Core > --- PROPULSION ------- Improved Titanium Leg Improved Titanium Leg Improved Titanium Leg > --- UTILITY ---------- Experimental Sensor Array Improved Signal Interpreter Armor Integrity Analyzer Hacking Suite Supersonic Drone Bay > --- WEAPON ----------- High-powered Shotgun Flak Gun Remote Datajack > --- INVENTORY -------- Machine Analyzer Target Analyzer Hardened Medium Armor Plating Hardened Medium Armor Plating Improved Medium Armor Plating [Rating: 59] Favorites ----------- Power Light Nuclear Core Engine Improved Ion Engine Power Core Light Nuclear Core Propulsion Improved Titanium Leg Treads Armored Treads Leg Improved Titanium Leg Flight Unit Improved VTOL Module Utility Experimental Sensor Array Device Experimental Sensor Array Storage Medium Matter Pod Processor Improved Signal Interpreter Hackware Hacking Suite Protection Hardened Medium Armor Plating Weapon High-powered Shotgun Energy Gun Spread Laser Energy Cannon Light EM Pulse Cannon Ballistic Gun High-powered Shotgun Ballistic Cannon Assault Cannon Special Weapon Remote Datajack Special Melee Weapon Datajack Build | -11 -10 -10 -10 -9 -8 -7 ------- Run | Scr Mat Min Exi Min Mat Fac Slots Evolved 6 | . . . . . 4 2 Power 1 | . . . . . . 1 Propulsion 1 | . . . . . 1 . Utility 3 | . . . . . 2 1 Weapon 1 | . . . . . 1 . Parts Attached 156 | 7 6 2 2 5 62 72 Power 22 | 1 1 . . . 4 16 Engine 12 | 1 1 . . . 3 7 Core 10 | . . . . . 1 9 Reactor . | . . . . . . . Propulsion 36 | 2 1 2 . 1 17 13 Treads 8 | . . . . . 7 1 Leg 27 | 2 1 2 . 1 9 12 Wheel . | . . . . . . . Hover . | . . . . . . . Flight 1 | . . . . . 1 . Utility 51 | 2 2 . 2 3 20 22 Device 17 | 1 . . 1 2 7 6 Storage 2 | 1 1 . . . . . Processor 4 | . . . . . 1 3 Hackware 2 | . . . . . 1 1 Protection 26 | . 1 . 1 1 11 12 Artifact . | . . . . . . . Weapon 47 | 2 2 . . 1 21 21 Energy Gun 10 | . . . . . 7 3 Energy Cannon 5 | . 2 . . . 1 2 Ballistic Gun 15 | 2 . . . . 8 5 Ballistic Cannon 5 | . . . . . . 5 Launcher . | . . . . . . . Special Weapon 5 | . . . . . . 5 Impact Weapon . | . . . . . . . Slashing Weapon . | . . . . . . . Piercing Weapon . | . . . . . . . Special Melee Weapon 7 | . . . . 1 5 1 Unidentified Prototypes 6 | . . . 1 1 4 . Parts Lost 23 | . . . . . 7 16 Power 3 | . . . . . . 3 Propulsion 5 | . . . . . 2 3 Utility 7 | . . . . . 2 5 Weapon 8 | . . . . . 3 5 Highest Loss Streak 10 | . . . . . 3 10 To Critical Strikes . | . . . . . . . Average Slot Usage (%) 97 | . 95 100 100 100 94 97 Engine 9 | . 14 14 14 14 8 6 Core 3 | . . . . . . 7 Treads 4 | . . . . . 12 2 Leg 19 | . 27 28 28 28 11 19 Device 11 | . 14 14 14 22 13 6 Processor 8 | . . . . . 7 13 Hackware 3 | . . . . . 1 7 Protection 10 | . 4 14 14 5 12 8 Energy Gun 1 | . . . . . 2 1 Energy Cannon 9 | . 27 28 28 23 3 2 Ballistic Gun 9 | . . . . . 16 10 Ballistic Cannon 1 | . . . . . . 3 Special Weapon 1 | . . . . . . 4 Special Melee Weapon 1 | . . . . 5 4 . Naked Turns . | . . . . . . . Heaviest Build 47 | 11 21 19 19 19 32 47 Greatest Support 60 | 20 20 20 20 20 60 60 Greatest Overweight (x) 8 | . 1 . . . 8 6 Average Overweight (x) . | . . . . . . . Largest Inventory Capacity 8 | 8 8 5 5 5 5 5 Average Capacity 5 | 7 5 5 5 5 5 5 Most Carried 5 | . 4 5 5 5 5 5 Average Carried 4 | . 2 4 4 4 4 4 Final Capacity 8 | 8 5 5 5 5 5 5 Final Carried 5 | . 4 4 4 4 5 4 Class Distribution -------------------- 34% | Hacker-Skirmisher 26% | Mutant 8% | Skirmisher 7% | Tank 6% | Hacker-Mutant 5% | Assassin 3% | Hacker-Assassin 3% | Scavenger-Assassin Dominant Class ---------------- Mutant | -10/Materials Mutant | -10/Mines Mutant | -10/Exiles Mutant | -9/Mines Tank | -8/Materials Hacker-Skirmisher | -7/Factory Resources | -11 -10 -10 -10 -9 -8 -7 ----------- Run | Scr Mat Min Exi Min Mat Fac Matter Collected 4115 | 276 125 20 . 72 1624 1998 Remotely . | . . . . . . . Salvage Created 5128 | 154 274 213 . 57 1858 2572 Parts 270 | 11 13 25 . 3 95 123 Haulers Intercepted 4 | . . . . . 3 1 Recyclers Shooed 7 | . . . . . 3 4 Parts Field Recycled . | . . . . . . . Retrieved Matter . | . . . . . . . Parts Self-Destructed . | . . . . . . . Prevented . | . . . . . . . Kills | -11 -10 -10 -10 -9 -8 -7 ------- Run | Scr Mat Min Exi Min Mat Fac Combat Hostiles Destroyed 97 | . 1 8 . 3 31 54 Guns 61 | . . . . . 24 37 Cannons 24 | . 1 7 . 1 1 14 AOE 7 | . . . . 2 3 2 Classes Destroyed 14 | 2 4 1 . . 5 2 Worker 19 | . 2 . . . 9 8 Builder 9 | . 2 . . . 5 2 Tunneler 6 | 3 . . . . 2 1 Hauler 4 | . . . . . 3 1 Recycler 8 | 1 1 . . . 2 4 Operator 2 | . . . . . 1 1 Watcher 8 | . 2 . . . 4 2 Swarmer 16 | . . 5 . 2 2 7 Grunt 55 | . 1 3 . 1 18 32 Brawler 1 | . . . . . . 1 Duelist 4 | . . . . . 2 2 Sentry 14 | . . . . . 8 6 Hunter 2 | . . . . . 1 1 Programmer 5 | . . . . . . 5 Best Kill Streak 13 | 4 3 3 . 2 7 13 Combat Bots Only 8 | . 1 3 . 2 4 8 Max Kills in Single Turn 3 | 1 1 1 . 2 3 2 Gunslinging . | . . . . . . . Exploded 3 | . . . . 2 3 2 Melee . | . . . . . . . Uniques/NPCs Destroyed . | . . . . . . . Combat | -11 -10 -10 -10 -9 -8 -7 -------- Run | Scr Mat Min Exi Min Mat Fac Damage Taken 6833 | . 16 159 . 61 1917 4680 Core 1044 | . . 19 . 8 313 704 Absorbed by Shields . | . . . . . . . Regen/Repaired (Parts) 943 | . 16 . . . 382 545 Core Remaining (%) 77 | 100 . . . 89 43 . Volleys Fired 342 | 9 13 13 . 4 111 192 Largest 3 | 2 2 2 . 2 3 3 Hottest 195 | 40 112 112 . 112 195 138 Shots Fired 738 | 18 26 26 . 8 289 371 Gun 540 | 18 . . . . 252 270 Cannon 194 | . 26 26 . 8 37 97 Launcher . | . . . . . . . Special 4 | . . . . . . 4 Kinetic 529 | 18 . . . . 223 288 Thermal 76 | . . . . . 29 47 Explosive . | . . . . . . . Electromagnetic 129 | . 26 26 . 8 37 32 Robot Hit Streak 31 | 9 12 7 . 6 23 31 Robot Miss Streak 7 | 2 1 2 . 1 7 7 Penetration Max 1 | . . . . . . 1 Secondary Targets 5 | . . . . . 1 4 Max Gunslinging Chain 1 | . . . . . 1 1 Shots Hit Robots 579 | 12 19 16 . 9 232 291 Core Hits 368 | 7 7 7 . 6 132 209 Critical Kills . | . . . . . . . Critical Parts Destroyed 5 | . . . . . 3 2 Critical Strikes 17 | . . . . 1 5 11 Destroy 5 | . . . . . 3 2 Blast 9 | . . . . . . 9 Corrupt 3 | . . . . 1 2 . Melee Attacks 11 | . . . . 3 8 . Impact . | . . . . . . . Slashing . | . . . . . . . Piercing . | . . . . . . . Sneak Attacks 9 | . . . . 3 6 . Combat Hostiles . | . . . . . . . Follow-up Attacks . | . . . . . . . Damage Inflicted 12256 | 111 552 356 . 248 4601 6388 Guns 7719 | 99 . . . . 3391 4229 Cannons 3518 | . 514 356 . 135 693 1820 Explosions 747 | . 34 . . 82 444 187 Melee . | . . . . . . . Ramming 272 | 12 4 . . 31 73 152 Kinetic 8153 | 99 . . . . 2998 5056 Thermal 1863 | . 34 . . 82 837 910 Explosive . | . . . . . . . Electromagnetic 1968 | . 514 356 . 135 693 270 Impact . | . . . . . . . Slashing . | . . . . . . . Piercing . | . . . . . . . Highest Corruption 4 | . . . . . . 4 Average Corruption 2 | . . . . . . 2 Corruption Purged . | . . . . . . . Corruption Blocked . | . . . . . . . Effects 40 | . . . . . . 40 Message Errors 15 | . . . . . . 15 Matter Fused 8 | . . . . . . 8 Heat Flow Errors 4 | . . . . . . 4 Energy Discharges 3 | . . . . . . 3 Data Loss (minor) 7 | . . . . . . 7 Misfires 1 | . . . . . . 1 Alerts 2 | . . . . . . 2 Overload Shots . | . . . . . . . Overflow Damage 103 | . 18 . . . 18 67 Projectiles 58 | . 18 . . . . 40 Explosions 45 | . . . . . 18 27 Melee . | . . . . . . . Knockbacks 18 | . . . . 1 . 17 Impact 2 | . . . . 1 . 1 Kinetic 16 | . . . . . . 16 Secondary . | . . . . . . . Self-Inflicted Damage 247 | . . . . 7 . 240 Shots 6 | . . . . 1 . 5 Rammed 6 | . . . . . 4 2 Targets Rammed 67 | 3 1 . . 8 26 29 Kicked 59 | 3 1 . . 8 21 26 Crushed 2 | . . . . . 1 1 Highest Temperature 996 | . 216 252 . 138 996 572 Average Temperature 129 | . 65 87 . 70 125 144 Received Heat Transfer 3174 | . 12 54 . 15 1125 1968 Effects 55 | . . . . . 24 31 Shutdowns 20 | . . . . . 5 15 Energy Bleed 5 | . . . . . 3 2 Interference 10 | . . . . . 4 6 Matter Decay 4 | . . . . . 4 . Short Circuit 5 | . . . . . 4 1 Damage (minor) 4 | . . . . . 2 2 Damage (major) 3 | . . . . . . 3 Damage (core) 4 | . . . . . 2 2 Siege Activations . | . . . . . . . Robots Corrupted 6 | . 1 1 . . 3 1 Combat Hostiles 5 | . . 1 . . 3 1 Parts Fried 10 | . 3 3 . 1 2 1 Impact Corruptions . | . . . . . . . Robots Melted . | . . . . . . . Combat Hostiles . | . . . . . . . Parts Melted 4 | . . . . 1 1 2 Heat Transferred 2436 | . 50 . . . 940 1446 Parts Sabotaged . | . . . . . . . Parts Stolen . | . . . . . . . Parts Stripped . | . . . . . . . Power Chain Reactions 6 | . 1 . . 1 2 2 Missiles Intercepted . | . . . . . . . Alert | -11 -10 -10 -10 -9 -8 -7 ------- Run | Scr Mat Min Exi Min Mat Fac Peak Influence 420 | 20 108 176 . 222 420 353 Initial 11 | . 11 6 . . 7 7 Average 119 | 8 35 109 . 155 177 92 Maximum Alert Level 2 | . . . . 1 2 1 Low Security (%) 79 | 100 100 100 . 40 58 91 Level 1 19 | . . . . 59 38 8 Level 2 1 | . . . . . 3 . Level 3 . | . . . . . . . Level 4 . | . . . . . . . Level 5 . | . . . . . . . High Security . | . . . . . . . Max Security . | . . . . . . . Squads Dispatched 37 | . 1 . . . 5 31 Investigation 22 | . 1 . . . 4 17 Extermination 5 | . . . . . . 5 Reinforcement 6 | . . . . . 1 5 Assault 1 | . . . . . . 1 Garrison 3 | . . . . . . 3 Intercept . | . . . . . . . Searches Triggered . | . . . . . . . Construction Impeded 1 | . . . . . . 1 Haulers Reinforced 1 | . . . . . . 1 Active Scanning Responses . | . . . . . . . Cargo Convoy Interrupts . | . . . . . . . Stealth | -11 -10 -10 -10 -9 -8 -7 --------- Run | Scr Mat Min Exi Min Mat Fac Distress Signals 9 | . . . . . 5 4 Communications Jammed . | . . . . . . . Distress Signals . | . . . . . . . Times Spotted 163 | . 4 13 . 5 64 77 Peak Tracking Total 14 | . 2 3 . 3 6 14 Tactical Retreats 17 | . 1 . . . 9 7 Traps | -11 -10 -10 -10 -9 -8 -7 ------- Run | Scr Mat Min Exi Min Mat Fac Traps Triggered 8 | . 1 . . . 2 5 Indirectly . | . . . . . . . Trap Hack Attempts 18 | . . . . . 18 . Triggered . | . . . . . . . Disarmed . | . . . . . . . Reprogrammed 8 | . . . . . 3 5 Reused 1 | . . . . . . 1 Traps Extracted . | . . . . . . . Installed . | . . . . . . . Triggered 2 | . . . . . . 2 Machines | -11 -10 -10 -10 -9 -8 -7 ---------- Run | Scr Mat Min Exi Min Mat Fac Machines Disabled 9 | . . . . . 2 7 Max in Single Turn 3 | . . . . . 1 3 Garrison Access 1 | . . . . . . 1 Machines Sabotaged . | . . . . . . . Garrisons Compromised . | . . . . . . . Overloaded Fab Kills . | . . . . . . . Hacking | -11 -10 -10 -10 -9 -8 -7 --------- Run | Scr Mat Min Exi Min Mat Fac Machines Accessed 33 | . 2 . 5 . 5 21 Terminals 15 | . 1 . . . 2 12 Fabricators 3 | . . . . . . 3 Repair Stations 6 | . 1 . . . 2 3 Recycling Units 1 | . . . . . . 1 Scanalyzers 3 | . . . . . 1 2 Garrison Access . | . . . . . . . Total Hacks 136 | . 3 . 50 . 20 63 Successful 112 | . 3 . 50 . 15 44 Failed 24 | . . . . . 5 19 Catastrophic 1 | . . . . . . 1 Database Lockouts . | . . . . . . . Manual 2 | . . . 1 . . 1 Terminals 40 | . 1 . . . 7 32 Fabricators 9 | . . . . . . 9 Repair Stations 23 | . 2 . . . 8 13 Recycling Units 3 | . . . . . . 3 Scanalyzers 11 | . . . . . 5 6 Garrison Access . | . . . . . . . Terminal Hacks 72 | . 1 . 50 . 3 18 Record 54 | . . . 49 . . 5 Part Schematic 2 | . . . . . . 2 Robot Analysis 1 | . . . . . 1 . Prototype ID Bank 3 | . . . . . 1 2 Open DSF 2 | . . . . . . 2 Emergency Access Points 1 | . . . . . . 1 Unreport Threat 1 | . . . . . . 1 Locate Traps 1 | . . . . . . 1 Reprogram Traps 1 | . . . . . . 1 Recall Investigation 1 | . . . . . . 1 Hauler Manifests 1 | . . . . . 1 . Registered Components 2 | . 1 . . . . 1 Registered Prototypes 1 | . . . . . . 1 EX-Prototype ID Bank 1 | . . . 1 . . . Fabricator Hacks 9 | . . . . . . 9 Network Status 4 | . . . . . . 4 Load Schematic 2 | . . . . . . 2 Build 3 | . . . . . . 3 Repair Station Hacks 20 | . 2 . . . 7 11 Scan Component 11 | . 1 . . . 4 6 Repair 9 | . 1 . . . 3 5 Recycling Unit Hacks 2 | . . . . . . 2 Process 1 | . . . . . . 1 Report Inventory 1 | . . . . . . 1 Scanalyzer 9 | . . . . . 5 4 Insert Component 4 | . . . . . 2 2 Analyze 5 | . . . . . 3 2 Garrison Access Hacks . | . . . . . . . Unauthorized Hacks . | . . . . . . . Terminals . | . . . . . . . Fabricators . | . . . . . . . Repair Stations . | . . . . . . . Recycling Units . | . . . . . . . Scanalyzers . | . . . . . . . Garrison Access . | . . . . . . . Data Cores Recovered . | . . . . . . . Used . | . . . . . . . Hacking Detections 25 | . 1 . . . 5 19 Full Trace Events 20 | . . . . . 4 16 Feedback Events . | . . . . . . . Feedback Blocked . | . . . . . . . Robot Schematics Acquired . | . . . . . . . Robots Built 1 | . . . . . . 1 Authchips . | . . . . . . . Time 58 | . . . . . . 58 Total Robot Build Rating 3 | . . . . . . 3 Part Schematics Acquired 6 | . . . . . 2 4 Parts Built 3 | . . . . . . 3 Authchips . | . . . . . . . Time 146 | . . . . . . 146 Total Part Build Rating 11 | . . . . . . 11 Parts Repaired 9 | . 1 . . . 3 5 Time 510 | . 26 . . . 212 272 Parts Recycled . | . . . . . . . Recycled Matter 6 | . . . . . . 6 Retrieved Matter . | . . . . . . . Retrieved Components . | . . . . . . . Parts Scanalyzed 4 | . . . . . 2 2 Part Schematics Acquired 4 | . . . . . 2 2 Parts Damaged . | . . . . . . . Bothacking | -11 -10 -10 -10 -9 -8 -7 ------------ Run | Scr Mat Min Exi Min Mat Fac Used RIF Installer . | . . . . . . . Robots Hacked 7 | . . . . 1 4 2 Non-combat 5 | . . . . 1 3 1 Combat 2 | . . . . . 1 1 Robot Hacks Applied 11 | . . . . 2 7 2 parse_system 5 | . . . . 1 2 2 no_distress 5 | . . . . 1 4 . check_alert 1 | . . . . . 1 . Relay Couplers Released 2 | . . . . . . 2 Machine Destruction 2 | . . . . . . 2 Fabnet Peak Effective % . | . . . . . . . Robots Rewired . | . . . . . . . Allies Hacked . | . . . . . . . Hacks Repelled . | . . . . . . . Allies | -11 -10 -10 -10 -9 -8 -7 -------- Run | Scr Mat Min Exi Min Mat Fac Total Allies 6 | . . 3 . 2 . 1 Largest Group 5 | . . 3 3 5 5 1 Highest-Rated Group 92 | . . 40 40 92 92 26 Highest-Rated Ally 31 | . . 16 16 31 31 26 Total Orders 9 | . . 2 . 3 2 2 GUARD 3 | . . 1 . 1 1 . AID 1 | . . 1 . . . . EXPLORE 4 | . . . . 1 1 2 RETURN 1 | . . . . 1 . . Ally Attacks 54 | . . 14 . 13 27 . Total Damage 663 | . . 187 . 123 353 . Kills 13 | . . 4 . 4 5 . Allies Corrupted . | . . . . . . . Allies Melted . | . . . . . . . Intel | -11 -10 -10 -10 -9 -8 -7 ------- Run | Scr Mat Min Exi Min Mat Fac Robot Analysis Total 1 | . . . . . 1 . Derelict Logs Recovered 4 | . . 2 . 2 . . Drone Launches 4 | . . . . 1 1 2 Drone Recoveries 4 | . . . . 1 1 2 Exploration | -11 -10 -10 -10 -9 -8 -7 ------------- Run | Scr Mat Min Exi Min Mat Fac Turns Passed 10219 | 95 596 805 823 563 2853 4484 Spaces Moved 5877 | 51 417 614 679 438 1246 2432 Core 12 | 4 . . . . 4 4 Treads 1150 | . . . . . 895 255 Legs 4715 | 47 417 614 679 438 347 2173 Wheels . | . . . . . . . Hover . | . . . . . . . Flight . | . . . . . . . Fastest Speed 50 | 50 120 120 120 120 120 123 Average Speed 133 | 114 122 120 120 120 158 133 Slowest Speed 450 | 120 190 120 120 120 450 350 Overloaded Moves . | . . . . . . . Propulsion Burnouts . | . . . . . . . Robots Hopped . | . . . . . . . Cave-ins Triggered . | . . . . . . . Time Travels 1 | . . . 1 . . . Exploration Rate (%) 74 | 4 76 98 93 99 88 64 Regions Visited 6 Branch Regions 3 Pre-discovered Areas 4 | . . 2 1 1 . . Known Exits Taken 1 | . . . . . 1 . Unknown Exits Taken 5 | 1 1 1 1 1 . . Scrap Searched 3 | . . 1 . 2 . . Spaces Dug . | . . . . . . . Terrain Destroyed 147 | . 6 . . 4 46 91 Melee . | . . . . . . . Projectile 4 | . . . . . . 4 AOE 142 | . 6 . . 4 46 86 Terrain Rammed . | . . . . . . . Walls Destroyed . | . . . . . . . Machines Disabled . | . . . . . . . Actions | -11 -10 -10 -10 -9 -8 -7 --------- Run | Scr Mat Min Exi Min Mat Fac Total 7533 | 69 477 656 687 464 1865 3315 Wait 931 | . 29 26 4 . 344 528 Move 5871 | 50 416 613 678 437 1245 2432 Hop . | . . . . . . . Pick Up 49 | . 7 . 2 3 19 18 Fast Attach 65 | 7 2 . . . 21 35 Attach 12 | . . . 1 1 3 7 Detach . | . . . . . . . Swap 79 | . 4 2 1 4 38 30 Drop 88 | . 5 2 1 4 32 44 Fire 342 | 9 13 13 . 4 111 192 Melee 11 | . . . . 3 8 . Ram . | . . . . . . . Kick 59 | 3 1 . . 8 21 26 Crush 8 | . . . . . 5 3 Escape Stasis . | . . . . . . . Rewire . | . . . . . . . Trap 18 | . . . . . 18 . Miscellaneous . | . . . . . . . Route ------- -11/Scrapyard -10/Materials (discovered 3 exits: [*Mat x2] / [*Min]) -10/Mines (discovered 3 exits: [*Mat x2] / *Exi) -10/Exiles (discovered 2 exits: [*Min x2]) -9/Mines (discovered 2 exits: *Mat x2) -8/Materials (discovered 2 exits: *Fac x2) -7/Factory (discovered 4 exits: *Fac x3 / *Low) History --------- Turn | Location | Event 3 | -11/Scrapyard | Discovered new exit (range 16) 96 | -11/Scrapyard | Entered Materials 236 | -10/Materials | Discovered new exit (range 10) 309 | -10/Materials | Build established: Mutant 552 | -10/Materials | Discovered new exit (range 5) 579 | -10/Materials | Discovered new exit (range 14) 663 | -10/Materials | Repaired Aluminum Leg 692 | -10/Materials | Entered Mines 779 | -10/Mines | Learned location of Zion (-7) 817 | -10/Mines | Deemed a non-threat by the Exiles lab entrance 817 | -10/Mines | Discovered new exit (range 5) 948 | -10/Mines | Discovered new exit (range 9) 1012 | -10/Mines | Assisted by bots powering up and referring to "LRC-V3" 1120 | -10/Mines | Discovered new exit (range 9) 1497 | -10/Mines | Entered Exiles 1497 | -10/Exiles | Accompanied by 3 allies 1519 | -10/Exiles | Discovered new exit (range 14) 1549 | -10/Exiles | Met 8R-AWN 1571 | -10/Exiles | Met EX-HEX 1626 | -10/Exiles | Met EX-DEC 1729 | -10/Exiles | Discovered new exit (range 11) 1852 | -10/Exiles | Visited The Gauntlet 2054 | -10/Exiles | Met EX-BIN 2083 | -10/Exiles | Aligned with FarCom system 2084 | -10/Exiles | Given EX-Vault access code 2167 | -10/Exiles | Opened EX-Vault 2179 | -10/Exiles | Found Prototype Device 2180 | -10/Exiles | Identified Supersonic Drone Bay 2197 | -10/Exiles | Found Chronowheel 2202 | -10/Exiles | Activated Chronowheel 2202 | -10/Exiles | Spacetime reconverged on an earlier point 2227 | -10/Exiles | Warned to stay clear of 0b10 Research branches 2320 | -10/Exiles | Left Exiles lab with Supersonic Drone Bay 2320 | -10/Exiles | Entered Mines 2320 | -9/Mines | Accompanied by 3 allies 2369 | -9/Mines | Discovered new exit (range 10) 2372 | -9/Mines | Discovered new exit (range 41) 2434 | -9/Mines | Learned location of 1 exit from Lower Caves 2489 | -9/Mines | Learned Materials stockpile data 2512 | -9/Mines | Found a hidden stash of uninstalled traps 2553 | -9/Mines | Found a damaged Exp. Sensor Array with a note attached 2555 | -9/Mines | Found Prototype Device 2556 | -9/Mines | Identified Exp. Sensor Array 2613 | -9/Mines | Learned location of Storage (-9) 2883 | -9/Mines | Entered Materials 2883 | -8/Materials | Accompanied by 5 allies 2883 | -8/Materials | Evolved 4 slots: Propulsion x1, Utility x2, Weapon x1 2888 | -8/Materials | Led the pair of lost Derelicts to an unsafe place 2997 | -8/Materials | Build established: Assassin 3410 | -8/Materials | Build established: Scavenger-Assassin 3499 | -8/Materials | Lost 3 parts (3w) 3851 | -8/Materials | Core integrity fell below 50% 3861 | -8/Materials | Build established: Tank 4133 | -8/Materials | Discovered new exit (range 16) 4361 | -8/Materials | Repaired Broken Exp. Sensor Array 4866 | -8/Materials | Build established: Skirmisher 5480 | -8/Materials | Build established: Hacker-Assassin 5511 | -8/Materials | Repaired Hrd. Medium Armor Plating 5549 | -8/Materials | Repaired Hrd. Medium Armor Plating 5647 | -8/Materials | Discovered new exit (range 16) 5734 | -8/Materials | Identified exit to Factory 5736 | -8/Materials | Entered Factory 5736 | -7/Factory | Evolved 2 slots: Power x1, Utility x1 6064 | -7/Factory | Build established: Hacker-Skirmisher 7032 | -7/Factory | Fabricated O-24 Administrator (x1) 7326 | -7/Factory | Repaired Hrd. Medium Armor Plating 7364 | -7/Factory | Repaired Hrd. Medium Armor Plating 7413 | -7/Factory | Repaired Imp. Medium Armor Plating 7819 | -7/Factory | Fabricated Adv. Signal Interpreter? 7952 | -7/Factory | Discovered new exit (range 10) 8378 | -7/Factory | Fabricated Datajack? 8390 | -7/Factory | Discovered new exit (range 16) 8456 | -7/Factory | Identified exit to Factory 8750 | -7/Factory | Repaired Exp. Sensor Array? 8854 | -7/Factory | Repaired Remote Datajack 8913 | -7/Factory | Build established: Hacker-Mutant 9026 | -7/Factory | Discovered new exit (range 4) 9032 | -7/Factory | Identified exit to Lower Caves 9355 | -7/Factory | Build established: Hacker-Skirmisher 9698 | -7/Factory | Discovered exit to Factory (range 8) 9890 | -7/Factory | Garrison activated, responded to threat 9904 | -7/Factory | Core integrity fell below 50% 9926 | -7/Factory | Core integrity fell below 20% 10035 | -7/Factory | Destroyed 8 combat bots 10039 | -7/Factory | Lost 10 parts (1p3n4u2w) 10220 | -7/Factory | Destroyed by S-27 Virus with Autogun Last Messages --------------- 10140_ U-05 Engineer destroyed. 10141_ Acquired 5 matter. 10151_ R-06 Scavenger collects Imp. Heat Sink. 10153_ U-05 Engineer builds a Door. 10159_ U-05 Engineer destroyed. 10161_ K-01 Serf cleans the Neutrino Reactor. 10162_ Acquired 5 matter. 10169_ System corrupted: Matter fused (-8). 10169_ Acquired 8 matter. 10175_ K-01 Serf collects debris. 10175_ K-01 Serf destroyed. 10178_ Acquired 5 matter. 10190_ R-06 Scavenger collects Lgt. Ion Engine. 10191_ R-06 Scavenger destroyed. 10193_ K-01 Serf collects debris. 10194_ Acquired 5 matter. 10197_ K-01 Serf collects debris. 10204_ R-06 Scavenger collects Wheel. 10205_ K-01 Serf collects debris. 10217_ K#P CY1FUKYAHMEVVDK QI5Y0AQXW9